fUST/lending_fUST_20250226
["ID","MTS","AMOUNT","RATE_DAILY","PERIOD"]
[354508597,1740544259386,-500.0,0.00038904,2]
[354508598,1740544259396,-500.0,0.00038904,2]
[354508599,1740544259405,-500.0,0.00038904,2]
[354508600,1740544259415,-500.0,0.00038904,2]
[354508601,1740544259424,-500.0,0.00038904,2]
[354508602,1740544259434,-504.97712061,0.00038904,2]
[354508603,1740544259443,-500.0,0.00038904,2]
[354508604,1740544259453,-500.0,0.00038904,2]
[354508605,1740544259462,-500.0,0.00038904,2]
[354508606,1740544259471,-500.0,0.00038904,2]
[354508607,1740544259481,-500.0,0.00038904,2]
[354508608,1740544259490,-500.0,0.00038904,2]
[354508609,1740544259503,-500.0,0.00038904,2]
[354508610,1740544259513,-500.0,0.00038904,2]
[354508611,1740544259523,-500.0,0.00038904,2]
[354508612,1740544259533,-500.0,0.00038904,2]
[354508613,1740544259543,-500.0,0.00038904,2]
[354508614,1740544259552,-500.0,0.00038904,2]
[354508615,1740544259562,-500.0,0.00038904,2]
[354508616,1740544259572,-500.0,0.00038904,2]
[354508617,1740544259582,-500.0,0.00038904,2]
[354508618,1740544259592,-500.0,0.00038904,2]
[354508619,1740544259601,-500.0,0.00038904,2]
[354508620,1740544259610,-500.0,0.00038904,2]
[354508621,1740544259619,-500.0,0.00038904,2]
[354508622,1740544259629,-500.0,0.00038904,2]
[354508623,1740544259638,-957.55,0.00038904,2]
[354508624,1740544259648,-500.0,0.00038904,2]
[354508625,1740544259657,-500.0,0.00038904,2]
[354508626,1740544259667,-500.0,0.00038904,2]
[354508627,1740544259676,-500.0,0.00038904,2]
[354508628,1740544259686,-500.0,0.00038904,2]
[354508629,1740544259695,-500.0,0.00038904,2]
[354508630,1740544259704,-500.0,0.00038904,2]
[354508631,1740544259713,-500.0,0.00038904,2]
[354508632,1740544259723,-695.71,0.00038904,2]
[354508633,1740544259732,-500.0,0.00038904,2]
[354508634,1740544259741,-500.0,0.00038904,2]
[354508635,1740544259751,-998.92,0.00038904,2]
[354508636,1740544259760,-500.0,0.00038904,2]
[354508637,1740544259770,-503.73219335,0.00038904,2]
[354508638,1740544259779,-955.63,0.00038904,2]
[354508639,1740544259789,-500.0,0.00038904,2]
[354508640,1740544259798,-500.0,0.00038904,2]
[354508641,1740544259807,-500.0,0.00038904,2]
[354508642,1740544259817,-500.0,0.00038904,2]
[354508643,1740544259826,-500.0,0.00038904,2]
[354508644,1740544259836,-500.0,0.00038904,2]
[354508645,1740544259845,-500.0,0.00038904,2]
[354508646,1740544259855,-513.08897261,0.00038904,2]
[354508647,1740544259864,-500.0,0.00038904,2]
[354508648,1740544259873,-500.0,0.00038904,2]
[354508649,1740544259882,-500.0,0.00038904,2]
[354508650,1740544259892,-1281.14,0.00038904,2]
[354508651,1740544259901,-500.0,0.00038904,2]
[354508652,1740544259910,-500.0,0.00038904,2]
[354508653,1740544259919,-500.0,0.00038904,2]
[354508654,1740544259928,-271.23331169,0.00038904,2]
[354508655,1740544259938,-500.0,0.00038904,2]
[354508656,1740544259947,-500.0,0.00038904,2]
[354508657,1740544259957,-500.0,0.00038904,2]
[354508658,1740544259966,-520.22,0.00038904,2]
[354508659,1740544259975,-500.0,0.00038904,2]
[354508660,1740544259984,-500.0,0.00038904,2]
[354508661,1740544259994,-500.0,0.00038904,2]
[354508662,1740544260003,-741.57,0.00038904,2]
[354508663,1740544260012,-275.52766513,0.00038904,2]
[354508664,1740544260022,-500.0,0.00038904,2]
[354508665,1740544260032,-500.0,0.00038904,2]
[354508666,1740544260041,-500.0,0.00038904,2]
[354508667,1740544260051,-1170.52,0.00038904,2]
[354508668,1740544260061,-501.70601291,0.00038904,2]
[354508669,1740544260071,-500.0,0.00038904,2]
[354508670,1740544260081,-500.0,0.00038904,2]
[354508671,1740544260090,-9359.13,0.00038904,2]
[354508672,1740544260100,-500.0,0.00038904,2]
[354508673,1740544260110,-500.0,0.00038904,2]
[354508674,1740544260119,-504.4734841,0.00038904,2]
[354508675,1740544260129,-500.0,0.00038904,2]
[354508676,1740544260138,-500.0,0.00038904,2]
[354508677,1740544260148,-946.31,0.00038904,2]
[354508678,1740544260158,-500.0,0.00038904,2]
[354508679,1740544260168,-500.0,0.00038904,2]
[354508680,1740544260177,-500.0,0.00038904,2]
[354508681,1740544260187,-691.55,0.00038904,2]
[354508682,1740544260197,-500.0,0.00038904,2]
[354508683,1740544260206,-2445.19,0.00038904,2]
[354508684,1740544260216,-607.41,0.00038904,2]
[354508685,1740544260226,-1967.57,0.00038904,2]
[354508686,1740544260236,-500.0,0.00038904,2]
[354508687,1740544260245,-552.15,0.00038904,2]
[354508688,1740544260255,-500.0,0.00038904,2]
[354508689,1740544260264,-500.0,0.00038904,2]
[354508690,1740544260274,-500.0,0.00038904,2]
[354508691,1740544260283,-500.0,0.00038904,2]
[354508692,1740544260293,-2973.75,0.00038904,2]
[354508693,1740544260302,-663.57,0.00038904,2]
[354508694,1740544260311,-500.0,0.00038904,2]
[354508695,1740544260321,-500.0,0.00038904,2]
[354508696,1740544260331,-500.0,0.00038904,2]
[354508697,1740544260340,-500.0,0.00038904,2]
[354508698,1740544260349,-500.0,0.00038904,2]
[354508699,1740544260359,-996.6,0.00038904,2]
[354508700,1740544260368,-72329.29,0.00038904,2]
[354508701,1740544260378,-502.46148728,0.00038904,2]
[354508702,1740544260387,-500.0,0.00038904,2]
[354508703,1740544260396,-500.0,0.00038904,2]
[354508704,1740544260405,-500.0,0.00038904,2]
[354508705,1740544260415,-902.02,0.00038904,2]
[354508706,1740544260424,-500.0,0.00038904,2]
[354508707,1740544260434,-1396.78,0.00038904,2]
[354508708,1740544260443,-500.0,0.00038904,2]
[354508709,1740544260453,-500.0,0.00038904,2]
[354508710,1740544260462,-755.39,0.00038904,2]
[354508711,1740544260472,-500.0,0.00038904,2]
[354508712,1740544260481,-500.0,0.00038904,2]
[354508713,1740544260491,-702.41,0.00038904,2]
[354508714,1740544260502,-500.0,0.00038904,2]
[354508715,1740544260512,-500.0,0.00038904,120]
[354508716,1740544260522,-12378.52,0.00038904,2]
[354508717,1740544260531,-500.0,0.00038904,2]
[354508718,1740544260541,-500.0,0.00038904,2]
[354508719,1740544260550,-1038.13,0.00038904,2]
[354508720,1740544260560,-643.97496299,0.00038904,2]
[354508721,1740544260569,-709.18,0.00038904,2]
[354508722,1740544260579,-500.0,0.00038904,2]
[354508723,1740544260588,-500.0,0.00038904,2]
[354508724,1740544260598,-500.0,0.00038904,2]
[354508725,1740544260607,-500.0,0.00038904,2]
[354508726,1740544260616,-500.0,0.00038904,2]
[354508727,1740544260625,-500.0,0.00038904,2]
[354508728,1740544260634,-500.0,0.00038904,2]
[354508729,1740544260644,-1163.07,0.00038904,2]
[354508730,1740544260653,-1165.42,0.00038904,2]
[354508731,1740544260662,-500.0,0.00038904,2]
[354508732,1740544260672,-567.85,0.00038904,2]
[354508733,1740544260720,-500.0,0.00038904,2]
[354508734,1740544260731,-500.0,0.00038904,2]
[354508735,1740544260740,-500.0,0.00038904,2]
[354508736,1740544260750,-500.0,0.00038904,2]
[354508737,1740544260759,-500.0,0.00038904,2]
[354508738,1740544260768,-158.42057189,0.00038904,2]
[354508739,1740544260777,-500.0,0.00038904,2]
[354508740,1740544260786,-500.0,0.00038904,2]
[354508741,1740544260795,-219.60765788,0.00038904,2]
[354508742,1740544260804,-500.0,0.00038904,2]
[354508743,1740544260813,-500.0,0.00038904,2]
[354508744,1740544260823,-500.0,0.00038904,2]
[354508745,1740544260831,-2388.56,0.00038904,2]
[354508746,1740544260840,-500.0,0.00038904,2]
[354508747,1740544260849,-500.0,0.00038904,2]
[354508748,1740544260859,-500.0,0.00038904,2]
[354508749,1740544260867,-2071.86,0.00038904,2]
[354508750,1740544260876,-2276.35,0.00038904,2]
[354508751,1740544260886,-500.0,0.00038904,2]
[354508752,1740544260895,-500.0,0.00038904,2]
[354508753,1740544260904,-500.0,0.00038904,2]
[354508754,1740544260914,-500.0,0.00038904,2]
[354508755,1740544260923,-500.0,0.00038904,2]
[354508756,1740544260932,-805.84,0.00038904,2]
[354508757,1740544260941,-4991.19,0.00038904,2]
[354508758,1740544260950,-500.0,0.00038904,2]
[354508759,1740544260959,-7488.25,0.00038904,2]
[354508760,1740544260969,-500.0,0.00038904,2]
[354508761,1740544260978,-680.72,0.00038904,2]
[354508762,1740544260987,-500.0,0.00038904,2]
[354508763,1740544260996,-500.0,0.00038904,2]
[354508764,1740544261005,-500.0,0.00038904,2]
[354508765,1740544261015,-6133.91,0.00038904,2]
[354508766,1740544261023,-500.0,0.00038904,2]
[354508767,1740544261033,-500.0,0.00038904,2]
[354508768,1740544261042,-957.39,0.00038904,2]
[354508769,1740544261051,-1005.05,0.00038904,2]
[354508770,1740544261060,-500.0,0.00038904,2]
[354508771,1740544261069,-500.0,0.00038904,2]
[354508772,1740544261079,-670.81,0.00038904,2]
[354508773,1740544261088,-916.92,0.00038904,2]
[354508774,1740544261097,-500.0,0.00038904,2]
[354508775,1740544261106,-1103.64,0.00038904,2]
[354508776,1740544261116,-502.97526004,0.00038904,2]
[354508777,1740544261126,-1211.22,0.00038904,2]
[354508778,1740544261134,-500.0,0.00038904,2]
[354508779,1740544261143,-500.0,0.00038904,2]
[354508780,1740544261152,-743.17,0.00038904,2]
[354508781,1740544261161,-2331.34,0.00038904,2]
[354508782,1740544261171,-500.0,0.00038904,2]
[354508783,1740544261180,-500.0,0.00038904,2]
[354508784,1740544261189,-500.0,0.00038904,2]
[354508785,1740544261198,-500.0,0.00038904,2]
[354508786,1740544261207,-1647.12,0.00038904,2]
[354508787,1740544261216,-500.0,0.00038904,2]
[354508788,1740544261225,-500.0,0.00038904,2]
[354508789,1740544261235,-500.0,0.00038904,2]
[354508790,1740544261245,-777.71,0.00038904,2]
[354508791,1740544261254,-500.0,0.00038904,2]
[354508792,1740544261264,-1861.53,0.00038904,2]
[354508793,1740544261273,-500.0,0.00038904,2]
[354508794,1740544261283,-500.0,0.00038904,2]
[354508795,1740544261292,-500.0,0.00038904,2]
[354508796,1740544261301,-525.46276765,0.00038904,2]
[354508797,1740544261311,-4944.6,0.00038904,2]
[354508798,1740544261319,-500.0,0.00038904,2]
[354508799,1740544261328,-2359.47,0.00038904,2]
[354508800,1740544261337,-780.51,0.00038904,2]
[354508801,1740544261346,-500.0,0.00038904,2]
[354508802,1740544261355,-500.0,0.00038904,2]
[354508803,1740544261365,-502.85070751,0.00038904,2]
[354508804,1740544261374,-3800.0,0.00038904,120]
[354508805,1740544261384,-333.12353233,0.00038904,2]
[354508806,1740544261393,-500.0,0.00038904,2]
[354508807,1740544261402,-500.0,0.00038904,2]
[354508808,1740544261412,-500.0,0.00038904,2]
[354508809,1740544261422,-500.0,0.00038904,2]
[354508810,1740544261431,-4514.97,0.00038904,2]
[354508811,1740544261441,-500.0,0.00038904,2]
[354508812,1740544261450,-7379.64,0.00038904,2]
[354508813,1740544261459,-500.0,0.00038904,2]
[354508814,1740544261469,-500.0,0.00038904,2]
[354508815,1740544261478,-500.0,0.00038904,2]
[354508816,1740544261487,-391.442079,0.00038904,2]
[354508817,1740544261499,-500.0,0.00038904,2]
[354508818,1740544261509,-500.0,0.00038904,2]
[354508819,1740544261519,-794.66,0.00038904,2]
[354508820,1740544261528,-500.0,0.00038973,5]
[354508821,1740544261539,-151.0,0.00039,13]
[354508822,1740544261548,-151.0,0.00039,20]
[354508823,1740544261557,-151.0,0.000391,18]
[354508824,1740544261566,-151.0,0.000391,18]
[354508825,1740544261576,-1996.0,0.00039176,120]
[354508826,1740544261585,-1996.0,0.00039176,120]
[354508827,1740544261594,-1996.0,0.00039176,120]
[354508828,1740544261603,-1996.0,0.00039176,120]
[354508829,1740544261612,-160.35707714,0.00039177,30]
[354508830,1740544261621,-160.6567546,0.00039177,30]
[354508831,1740544261630,-500.0,0.00039178,2]
[354508832,1740544261639,-500.0,0.00039178,2]
[354508833,1740544261649,-500.0,0.00039178,2]
[354508834,1740544261658,-500.0,0.00039178,2]
[354508835,1740544261667,-500.0,0.00039178,2]
[354508836,1740544261676,-500.0,0.00039178,2]
[354508837,1740544261685,-500.0,0.00039178,2]
[354508838,1740544261695,-500.0,0.00039178,2]
[354508839,1740544261704,-500.0,0.00039178,2]
[354508840,1740544261713,-500.0,0.00039178,2]
[354508841,1740544261722,-500.0,0.00039178,2]
[354508842,1740544261732,-500.0,0.00039178,2]
[354508843,1740544261741,-500.0,0.00039178,2]
[354508844,1740544261750,-500.0,0.00039178,2]
[354508845,1740544261760,-500.0,0.00039178,2]
[354508846,1740544261769,-500.0,0.00039178,2]
[354508847,1740544261778,-500.0,0.00039178,2]
[354508848,1740544261787,-500.0,0.00039178,2]
[354508849,1740544261796,-500.0,0.00039178,2]
[354508850,1740544261805,-500.0,0.00039178,2]
[354508851,1740544261814,-500.0,0.00039178,2]
[354508852,1740544261824,-500.0,0.00039178,2]
[354508853,1740544261834,-609.9,0.00039178,2]
[354508854,1740544261843,-500.0,0.00039178,2]
[354508855,1740544261852,-500.0,0.00039178,2]
[354508856,1740544261861,-506.36,0.00039178,2]
[354508857,1740544261870,-500.0,0.00039178,2]
[354508858,1740544261879,-500.0,0.00039178,2]
[354508859,1740544261888,-500.0,0.00039178,2]
[354508860,1740544261897,-500.0,0.00039178,2]
[354508861,1740544261906,-500.0,0.00039178,2]
[354508862,1740544261915,-500.0,0.00039178,2]
[354508863,1740544261925,-500.0,0.00039178,2]
[354508864,1740544261934,-596.83,0.00039178,2]
[354508865,1740544261942,-500.0,0.00039178,2]
[354508866,1740544261952,-500.0,0.00039178,2]
[354508867,1740544261961,-586.25,0.00039178,2]
[354508868,1740544261970,-500.0,0.00039178,2]
[354508869,1740544261979,-551.48,0.00039178,2]
[354508870,1740544261988,-500.0,0.00039178,2]
[354508871,1740544261997,-968.85,0.00039178,2]
[354508872,1740544262007,-500.0,0.00039178,2]
[354508873,1740544262016,-348.36352765,0.00039178,2]
[354508874,1740544262025,-500.0,0.00039178,2]
[354508875,1740544262034,-500.0,0.00039178,2]
[354508876,1740544262043,-500.0,0.00039178,2]
[354508877,1740544262052,-500.0,0.00039178,2]
[354508878,1740544262061,-545.54877682,0.00039178,2]
[354508879,1740544262070,-500.0,0.00039178,2]
[354508880,1740544262079,-500.0,0.00039178,2]
[354508881,1740544262088,-500.0,0.00039178,2]
[354508882,1740544262097,-500.0,0.00039178,2]
[354508883,1740544262107,-500.0,0.00039178,2]
[354508884,1740544262116,-500.0,0.00039178,2]
[354508885,1740544262125,-500.0,0.00039178,2]
[354508886,1740544262134,-500.0,0.00039178,2]
[354508887,1740544262143,-500.0,0.00039178,2]
[354508888,1740544262153,-500.0,0.00039178,2]
[354508889,1740544262162,-500.0,0.00039178,2]
[354508890,1740544262172,-245.9810937,0.00039178,2]
[354508891,1740544262182,-500.0,0.00039178,2]
[354508892,1740544262191,-500.0,0.00039178,2]
[354508893,1740544262200,-500.0,0.00039178,2]
[354508894,1740544262210,-500.0,0.00039178,2]
[354508895,1740544262219,-685.27,0.00039178,2]
[354508896,1740544262229,-500.0,0.00039178,2]
[354508897,1740544262239,-500.0,0.00039178,2]
[354508898,1740544262249,-500.0,0.00039178,2]
[354508899,1740544262258,-500.0,0.00039178,2]
[354508900,1740544262267,-500.0,0.00039178,2]
[354508901,1740544262276,-500.0,0.00039178,2]
[354508902,1740544262285,-500.0,0.00039178,2]
[354508903,1740544262295,-500.0,0.00039178,2]
[354508904,1740544262304,-500.0,0.00039178,2]
[354508905,1740544262313,-500.0,0.00039178,2]
[354508906,1740544262322,-500.0,0.00039178,2]
[354508907,1740544262331,-500.0,0.00039178,2]
[354508908,1740544262340,-500.0,0.00039178,2]
[354508909,1740544262349,-500.0,0.00039178,2]
[354508910,1740544262358,-500.0,0.00039178,2]
[354508911,1740544262368,-500.0,0.00039178,2]
[354508912,1740544262378,-500.0,0.00039178,2]
[354508913,1740544262387,-500.0,0.00039178,2]
[354508914,1740544262396,-500.0,0.00039178,2]
[354508915,1740544262406,-500.0,0.00039178,2]
[354508916,1740544262415,-500.0,0.00039178,2]
[354508917,1740544262424,-500.0,0.00039178,2]
[354508918,1740544262433,-957.55,0.00039178,2]
[354508919,1740544262443,-500.0,0.00039178,2]
[354508920,1740544262452,-500.0,0.00039178,2]
[354508921,1740544262461,-500.0,0.00039178,2]
[354508922,1740544262471,-515.38623527,0.00039178,2]
[354508923,1740544262480,-500.0,0.00039178,2]
[354508924,1740544262489,-500.0,0.00039178,2]
[354508925,1740544262501,-500.0,0.00039178,2]
[354508926,1740544262510,-695.71,0.00039178,2]
[354508927,1740544262519,-500.0,0.00039178,2]
[354508928,1740544262529,-998.92,0.00039178,2]
[354508929,1740544262538,-500.0,0.00039178,2]
[354508930,1740544262548,-955.63,0.00039178,2]
[354508931,1740544262558,-500.0,0.00039178,2]
[354508932,1740544262567,-500.0,0.00039178,2]
[354508933,1740544262578,-500.0,0.00039178,2]
[354508934,1740544262587,-500.0,0.00039178,2]
[354508935,1740544262596,-500.0,0.00039178,2]
[354508936,1740544262605,-500.0,0.00039178,2]
[354508937,1740544262614,-500.0,0.00039178,2]
[354508938,1740544262623,-572.72494536,0.00039178,2]
[354508939,1740544262633,-500.0,0.00039178,2]
[354508940,1740544262642,-500.0,0.00039178,2]
[354508941,1740544262651,-1281.14,0.00039178,2]
[354508942,1740544262660,-500.0,0.00039178,2]
[354508943,1740544262669,-500.0,0.00039178,2]
[354508944,1740544262678,-500.0,0.00039178,2]
[354508945,1740544262687,-500.0,0.00039178,2]
[354508946,1740544262696,-520.22,0.00039178,2]
[354508947,1740544262705,-500.0,0.00039178,2]
[354508948,1740544262714,-500.0,0.00039178,2]
[354508949,1740544262723,-741.57,0.00039178,2]
[354508950,1740544262734,-500.0,0.00039178,2]
[354508951,1740544262743,-500.0,0.00039178,2]
[354508952,1740544262752,-500.0,0.00039178,2]
[354508953,1740544262762,-1170.52,0.00039178,2]
[354508954,1740544262771,-500.0,0.00039178,2]
[354508955,1740544262781,-500.0,0.00039178,2]
[354508956,1740544262790,-9359.13,0.00039178,2]
[354508957,1740544262799,-500.0,0.00039178,2]
[354508958,1740544262809,-500.0,0.00039178,2]
[354508959,1740544262818,-500.0,0.00039178,2]
[354508960,1740544262829,-946.31,0.00039178,2]
[354508961,1740544262839,-500.0,0.00039178,2]
[354508962,1740544262849,-500.0,0.00039178,2]
[354508963,1740544262858,-691.55,0.00039178,2]
[354508964,1740544262868,-500.0,0.00039178,2]
[354508965,1740544262878,-2445.19,0.00039178,2]
[354508966,1740544262887,-607.41,0.00039178,2]
[354508967,1740544262896,-1967.57,0.00039178,2]
[354508968,1740544262906,-500.0,0.00039178,2]
[354508969,1740544262915,-500.0,0.00039178,2]
[354508970,1740544262925,-500.0,0.00039178,2]
[354508971,1740544262934,-2973.75,0.00039178,2]
[354508972,1740544262944,-663.57,0.00039178,2]
[354508973,1740544262953,-500.0,0.00039178,2]
[354508974,1740544262963,-500.0,0.00039178,2]
[354508975,1740544262973,-500.0,0.00039178,2]
[354508976,1740544262982,-500.0,0.00039178,2]
[354508977,1740544262992,-996.6,0.00039178,2]
[354508978,1740544263002,-72329.29,0.00039178,2]
[354508979,1740544263011,-500.0,0.00039178,2]
[354508980,1740544263021,-500.0,0.00039178,2]
[354508981,1740544263031,-500.0,0.00039178,2]
[354508982,1740544263040,-902.02,0.00039178,2]
[354508983,1740544263050,-500.0,0.00039178,2]
[354508984,1740544263060,-1396.78,0.00039178,2]
[354508985,1740544263070,-603.95185659,0.00039178,2]
[354508986,1740544263080,-511.15225811,0.00039178,2]
[354508987,1740544263090,-755.39,0.00039178,2]
[354508988,1740544263100,-500.0,0.00039178,2]
[354508989,1740544263109,-500.0,0.00039178,2]
[354508990,1740544263120,-702.41,0.00039178,2]
[354508991,1740544263129,-500.0,0.00039178,120]
[354508992,1740544263140,-12378.52,0.00039178,2]
[354508993,1740544263150,-500.0,0.00039178,2]
[354508994,1740544263160,-500.0,0.00039178,2]
[354508995,1740544263171,-1038.13,0.00039178,2]
[354508996,1740544263180,-709.18,0.00039178,2]
[354508997,1740544263190,-500.0,0.00039178,2]
[354508998,1740544263199,-500.0,0.00039178,2]
[354508999,1740544263209,-500.0,0.00039178,2]
[354509000,1740544263219,-500.0,0.00039178,2]
[354509001,1740544263228,-500.0,0.00039178,2]
[354509002,1740544263239,-500.0,0.00039178,2]
[354509003,1740544263249,-1163.07,0.00039178,2]
[354509004,1740544263259,-1165.42,0.00039178,2]
[354509005,1740544263270,-500.0,0.00039178,2]
[354509006,1740544263280,-567.85,0.00039178,2]
[354509007,1740544263290,-500.0,0.00039178,2]
[354509008,1740544263301,-500.0,0.00039178,2]
[354509009,1740544263311,-500.0,0.00039178,2]
[354509010,1740544263321,-500.0,0.00039178,2]
[354509011,1740544263331,-500.0,0.00039178,2]
[354509012,1740544263341,-500.0,0.00039178,2]
[354509013,1740544263352,-500.0,0.00039178,2]
[354509014,1740544263363,-500.0,0.00039178,2]
[354509015,1740544263373,-500.0,0.00039178,2]
[354509016,1740544263384,-2388.56,0.00039178,2]
[354509017,1740544263394,-500.0,0.00039178,2]
[354509018,1740544263404,-500.0,0.00039178,2]
[354509019,1740544263414,-507.02611195,0.00039178,2]
[354509020,1740544263424,-2071.86,0.00039178,2]
[354509021,1740544263434,-2276.35,0.00039178,2]
[354509022,1740544263443,-500.0,0.00039178,2]
[354509023,1740544263453,-500.0,0.00039178,2]
[354509024,1740544263463,-500.0,0.00039178,2]
[354509025,1740544263473,-500.0,0.00039178,2]
[354509026,1740544263484,-500.0,0.00039178,2]
[354509027,1740544263493,-805.84,0.00039178,2]
[354509028,1740544263507,-500.0,0.00039178,2]
[354509029,1740544263516,-4991.19,0.00039178,2]
[354509030,1740544263526,-7488.25,0.00039178,2]
[354509031,1740544263536,-589.86299557,0.00039178,2]
[354509032,1740544263547,-680.72,0.00039178,2]
[354509033,1740544263557,-500.0,0.00039178,2]
[354509034,1740544263566,-500.0,0.00039178,2]
[354509035,1740544263576,-6133.91,0.00039178,2]
[354509036,1740544263586,-500.0,0.00039178,2]
[354509037,1740544263597,-957.39,0.00039178,2]
[354509038,1740544263606,-1005.05,0.00039178,2]
[354509039,1740544263616,-500.0,0.00039178,2]
[354509040,1740544263625,-670.81,0.00039178,2]
[354509041,1740544263635,-916.92,0.00039178,2]
[354509042,1740544263645,-1103.64,0.00039178,2]
[354509043,1740544263655,-1211.22,0.00039178,2]
[354509044,1740544263665,-500.0,0.00039178,2]
[354509045,1740544263676,-500.0,0.00039178,2]
[354509046,1740544263685,-743.17,0.00039178,2]
[354509047,1740544263694,-2331.34,0.00039178,2]
[354509048,1740544263704,-500.0,0.00039178,2]
[354509049,1740544263715,-500.0,0.00039178,2]
[354509050,1740544263724,-500.0,0.00039178,2]
[354509051,1740544263736,-1647.12,0.00039178,2]
[354509052,1740544263746,-500.0,0.00039178,2]
[354509053,1740544263756,-500.0,0.00039178,2]
[354509054,1740544263766,-777.71,0.00039178,2]
[354509055,1740544263776,-1861.53,0.00039178,2]
[354509056,1740544263786,-500.0,0.00039178,2]
[354509057,1740544263796,-500.0,0.00039178,2]
[354509058,1740544263806,-4944.6,0.00039178,2]
[354509059,1740544263817,-500.0,0.00039178,2]
[354509060,1740544263826,-2359.47,0.00039178,2]
[354509061,1740544263836,-780.51,0.00039178,2]
[354509062,1740544263847,-622.03575335,0.00039178,2]
[354509063,1740544263856,-500.0,0.00039178,2]
[354509064,1740544263866,-500.0,0.00039178,2]
[354509065,1740544263875,-500.0,0.00039178,2]
[354509066,1740544263885,-500.0,0.00039178,2]
[354509067,1740544263895,-4514.97,0.00039178,2]
[354509068,1740544263905,-500.0,0.00039178,2]
[354509069,1740544263915,-7379.64,0.00039178,2]
[354509070,1740544263925,-500.0,0.00039178,2]
[354509071,1740544263935,-500.0,0.00039178,2]
[354509072,1740544263945,-500.0,0.00039178,2]
[354509073,1740544263955,-500.0,0.00039178,2]
[354509074,1740544263966,-151.0,0.000392,14]
[354509075,1740544263976,-160.0,0.00039233,4]
[354509076,1740544263987,-151.0,0.000393,11]
[354509077,1740544263997,-808.46,0.0003936,3]
[354509078,1740544264007,-404.22,0.0003936,3]
[354509079,1740544264017,-500.0,0.00039452,2]
[354509080,1740544264027,-542.31525446,0.00039452,2]
[354509081,1740544264037,-500.0,0.00039452,2]
[354509082,1740544264047,-500.0,0.00039452,2]
[354509083,1740544264057,-500.0,0.00039452,2]
[354509084,1740544264067,-379.99389293,0.00039452,2]
[354509085,1740544264077,-500.0,0.00039452,2]
[354509086,1740544264087,-500.0,0.00039452,2]
[354509087,1740544264097,-500.0,0.00039452,2]
[354509088,1740544264106,-500.0,0.00039452,2]
[354509089,1740544264116,-500.0,0.00039452,2]
[354509090,1740544264126,-500.0,0.00039452,2]
[354509091,1740544264136,-500.0,0.00039452,2]
[354509092,1740544264146,-500.0,0.00039452,2]
[354509093,1740544264156,-500.0,0.00039452,2]
[354509094,1740544264166,-500.0,0.00039452,2]
[354509095,1740544264175,-500.0,0.00039452,2]
[354509096,1740544264184,-500.0,0.00039452,2]